[Event "MČR juniorů a juniorek v rapid šachu 2024"]
[Site "Hotel Fit Fun, Harrachov, Czech Republic"]
[Date "2024.09.22"]
[Round "9.34"]
[White "Kopecka Anna"]
[Black "Tichy Richard"]
[Result "0-1"]
[TimeControl "20+5"]
[WhiteFideId "23767740"]
[BlackFideId "23727063"]
[WhiteElo "1431"]
[BlackElo "1698"]

1. d4 {[%clk 00:20:08]} {[%emt 00:00:01]} d5 {[%clk 00:20:09]} {[%emt
00:00:01]} 2. Nf3 {[%clk 00:20:11]} Nf6 {[%clk 00:20:03]} {[%emt 00:00:11]} 3.
e3 {[%clk 00:20:15]} {[%emt 00:00:01]} g6 {[%clk 00:20:00]} {[%emt 00:00:09]} 4.
Bd3 {[%clk 00:20:19]} {[%emt 00:00:01]} Bg7 {[%clk 00:20:02]} {[%emt 00:00:03]}
5. Nbd2 {[%clk 00:20:21]} {[%emt 00:00:03]} Nc6 {[%clk 00:19:54]} {[%emt
00:00:13]} 6. a3 {[%clk 00:20:25]} O-O {[%clk 00:19:38]} {[%emt 00:00:21]} 7.
O-O {[%clk 00:20:19]} {[%emt 00:00:10]} Re8 {[%clk 00:19:12]} {[%emt 00:00:31]}
8. b3 {[%clk 00:19:59]} {[%emt 00:00:25]} e5 {[%clk 00:19:12]} {[%emt
00:00:06]} 9. dxe5 {[%clk 00:19:52]} {[%emt 00:00:11]} Nxe5 {[%clk 00:19:11]}
{[%emt 00:00:07]} 10. Nxe5 {[%clk 00:19:42]} Rxe5 {[%clk 00:19:12]} {[%emt
00:00:19]} 11. Bb2 {[%emt 00:00:44]} Re6 {[%emt 00:00:50]} 12. c4 {[%clk
00:18:28]} {[%emt 00:00:13]} b6 {[%clk 00:18:25]} {[%emt 00:00:34]} 13. cxd5
{[%clk 00:18:14]} {[%emt 00:00:18]} Qxd5 {[%clk 00:18:26]} {[%emt 00:00:04]} 14.
Qc2 {[%clk 00:17:12]} {[%emt 00:01:07]} Bb7 {[%clk 00:17:54]} {[%emt 00:00:38]}
15. Nf3 {[%clk 00:16:44]} {[%emt 00:00:32]} c5 {[%clk 00:16:27]} {[%emt
00:01:33]} 16. Bc4 {[%clk 00:16:37]} {[%emt 00:00:12]} Qe4 {[%clk 00:16:02]}
{[%emt 00:00:30]} 17. Qxe4 {[%clk 00:16:22]} {[%emt 00:00:20]} Rxe4 {[%clk
00:16:05]} {[%emt 00:00:02]} 18. Rad1 {[%clk 00:15:14]} {[%emt 00:01:12]} a6
{[%clk 00:14:14]} {[%emt 00:01:57]} 19. Ne5 {[%clk 00:14:30]} {[%emt 00:00:48]}
Ng4 {[%clk 00:13:09]} {[%emt 00:01:11]} 20. Nxg4 {[%clk 00:13:02]} {[%emt
00:01:32]} Bxb2 {[%clk 00:12:46]} {[%emt 00:00:28]} 21. h3 {[%clk 00:12:15]}
{[%emt 00:00:53]} Kg7 {[%clk 00:11:32]} {[%emt 00:01:19]} 22. a4 {[%clk
00:11:38]} {[%emt 00:00:42]} h5 {[%clk 00:11:23]} {[%emt 00:00:13]} 23. Nh2
{[%clk 00:11:11]} {[%emt 00:00:32]} Re7 {[%clk 00:10:47]} {[%emt 00:00:42]} 24.
Rd2 {[%clk 00:10:52]} {[%emt 00:00:23]} Be5 {[%clk 00:10:09]} {[%emt 00:00:43]}
25. Rfd1 {[%clk 00:10:10]} {[%emt 00:00:47]} Bc6 {[%clk 00:09:57]} {[%emt
00:00:18]} 26. Nf3 {[%clk 00:09:38]} {[%emt 00:00:37]} Bc7 {[%clk 00:09:12]}
{[%emt 00:00:50]} 27. Bd5 {[%clk 00:09:10]} {[%emt 00:00:32]} Bxd5 {[%clk
00:08:45]} {[%emt 00:00:34]} 28. Rxd5 {[%clk 00:09:13]} {[%emt 00:00:01]} a5
{[%clk 00:07:41]} {[%emt 00:01:08]} 29. Rd7 {[%clk 00:07:53]} {[%emt 00:01:24]}
Rae8 {[%clk 00:07:33]} {[%emt 00:00:15]} 30. Rxe7 {[%clk 00:07:34]} {[%emt
00:00:24]} Rxe7 {[%clk 00:07:36]} {[%emt 00:00:01]} 31. Nd2 {[%clk 00:07:21]}
{[%emt 00:00:18]} Rd7 {[%clk 00:06:25]} {[%emt 00:01:17]} 32. Kf1 {[%clk
00:07:24]} {[%emt 00:00:02]} Be5 {[%clk 00:05:59]} {[%emt 00:00:31]} 33. Ke2
{[%clk 00:07:12]} {[%emt 00:00:16]} Bc7 {[%clk 00:04:45]} {[%emt 00:01:20]} 34.
Rc1 {[%clk 00:05:45]} {[%emt 00:01:32]} Bd8 {[%clk 00:04:37]} {[%emt 00:00:13]}
35. Nc4 {[%clk 00:05:28]} {[%emt 00:00:22]} g5 {[%clk 00:04:16]} {[%emt
00:00:25]} 36. Ne5 {[%clk 00:05:09]} {[%emt 00:00:23]} Rd5 {[%clk 00:03:48]}
{[%emt 00:00:35]} 37. Nf3 {[%clk 00:04:45]} {[%emt 00:00:29]} g4 {[%clk
00:03:40]} {[%emt 00:00:13]} 38. hxg4 {[%clk 00:04:14]} {[%emt 00:00:36]} hxg4
{[%clk 00:03:42]} {[%emt 00:00:03]} 39. Nd2 {[%clk 00:03:32]} {[%emt 00:00:46]}
Bc7 {[%clk 00:03:33]} {[%emt 00:00:15]} 40. Ne4 {[%clk 00:03:18]} {[%emt
00:00:18]} Re5 {[%clk 00:03:24]} {[%emt 00:00:15]} 41. Nc3 {[%clk 00:03:12]}
{[%emt 00:00:10]} Re6 {[%clk 00:03:17]} {[%emt 00:00:13]} 42. Rd1 {[%clk
00:02:57]} {[%emt 00:00:20]} g3 {[%clk 00:02:52]} {[%emt 00:00:29]} 43. f3
{[%clk 00:02:51]} {[%emt 00:00:11]} Bf4 {[%clk 00:02:52]} {[%emt 00:00:05]} 44.
Nd5 {[%clk 00:02:24]} {[%emt 00:00:33]} Bg5 {[%clk 00:02:39]} {[%emt 00:00:18]}
45. e4 {[%clk 00:02:18]} {[%emt 00:00:10]} Kg6 {[%emt 00:00:33]} 46. Nxb6
{[%clk 00:02:11]} {[%emt 00:00:03]} Rxb6 {[%clk 00:02:20]} {[%emt 00:00:07]} 47.
Rd5 {[%clk 00:01:44]} {[%emt 00:00:30]} f6 {[%clk 00:02:19]} {[%emt 00:00:06]}
48. Rxc5 {[%clk 00:01:39]} {[%emt 00:00:10]} Rxb3 {[%clk 00:02:20]} {[%emt
00:00:05]} 49. Rxa5 {[%clk 00:01:29]} {[%emt 00:00:16]} Rb2+ {[%clk 00:02:17]}
{[%emt 00:00:07]} 50. Kf1 {[%clk 00:01:20]} {[%emt 00:00:13]} Rf2+ {[%clk
00:02:17]} {[%emt 00:00:06]} 51. Kg1 {[%clk 00:01:04]} {[%emt 00:00:20]} Be3
{[%clk 00:02:04]} {[%emt 00:00:19]} 52. Ra6 {[%clk 00:00:25]} {[%emt 00:00:44]}
Rxf3+ {[%clk 00:02:01]} {[%emt 00:00:07]} 0-1



[ePGN "0.1;DGT LiveChess/2.2.6"]

[Event "MČR juniorů a juniorek v rapid šachu 2024"]
[Site "Hotel Fit Fun, Harrachov, Czech Republic"]
[Date "2024.09.22"]
[Round "9.35"]
[White "Zadrapova Gabriela"]
[Black "Martinkovicova Nela"]
[Result "0-1"]
[TimeControl "20+5"]
[WhiteFideId "23753056"]
[BlackFideId "23715596"]
[WhiteElo "1456"]
[BlackElo "1446"]

1. e4 {[%clk 00:20:08]} {[%emt 00:00:02]} e5 {[%clk 00:20:08]} {[%emt
00:00:03]} 2. Nf3 {[%clk 00:20:11]} {[%emt 00:00:01]} Nf6 {[%clk 00:20:11]}
{[%emt 00:00:02]} 3. Nc3 {[%clk 00:20:15]} Nc6 {[%clk 00:19:54]} {[%emt
00:00:23]} 4. Bb5 {[%clk 00:20:19]} {[%emt 00:00:02]} d6 {[%clk 00:19:39]}
{[%emt 00:00:19]} 5. O-O {[%clk 00:20:21]} {[%emt 00:00:04]} a6 {[%clk
00:19:34]} {[%emt 00:00:10]} 6. Ba4 {[%clk 00:20:21]} {[%emt 00:00:05]} b5
{[%clk 00:19:36]} {[%emt 00:00:02]} 7. Bb3 {[%clk 00:20:17]} {[%emt 00:00:09]}
Bg4 {[%clk 00:19:37]} {[%emt 00:00:05]} 8. d3 {[%clk 00:20:03]} {[%emt
00:00:19]} Nd4 {[%clk 00:19:21]} {[%emt 00:00:21]} 9. Bg5 {[%clk 00:19:12]}
{[%emt 00:00:54]} h6 {[%clk 00:18:15]} {[%emt 00:01:12]} 10. Bh4 {[%clk
00:19:05]} {[%emt 00:00:11]} g5 {[%clk 00:18:11]} {[%emt 00:00:10]} 11. Bg3
{[%clk 00:19:07]} {[%emt 00:00:03]} Nxf3+ {[%clk 00:18:04]} {[%emt 00:00:13]}
12. gxf3 {[%clk 00:19:08]} {[%emt 00:00:03]} Bh3 {[%clk 00:18:01]} {[%emt
00:00:07]} 13. Re1 {[%clk 00:19:11]} {[%emt 00:00:03]} h5 {[%clk 00:17:50]}
{[%emt 00:00:16]} 14. Qd2 {[%clk 00:15:58]} {[%emt 00:03:18]} Rg8 {[%clk
00:17:02]} {[%emt 00:00:53]} 15. Kh1 {[%clk 00:15:29]} {[%emt 00:00:34]} h4
{[%clk 00:16:38]} {[%emt 00:00:29]} 16. Bxe5 {[%clk 00:15:18]} {[%emt
00:00:16]} dxe5 {[%clk 00:16:27]} {[%emt 00:00:16]} 17. Rg1 {[%clk 00:14:31]}
{[%emt 00:00:52]} Qd7 {[%clk 00:15:57]} {[%emt 00:00:35]} 18. Nd5 {[%clk
00:12:42]} {[%emt 00:01:55]} Nxd5 {[%clk 00:14:46]} {[%emt 00:01:16]} 19. Bxd5
{[%clk 00:12:43]} {[%emt 00:00:04]} c6 {[%clk 00:14:44]} {[%emt 00:00:07]} 20.
Bb3 {[%clk 00:12:45]} {[%emt 00:00:03]} g4 {[%clk 00:13:58]} {[%emt 00:00:51]}
21. Qc3 {[%clk 00:08:21]} {[%emt 00:04:28]} Bd6 {[%clk 00:12:10]} {[%emt
00:01:53]} 22. Qd2 {[%clk 00:06:48]} {[%emt 00:01:38]} O-O-O {[%clk 00:11:07]}
{[%emt 00:01:08]} 23. Qe3 {[%clk 00:05:38]} {[%emt 00:01:15]} gxf3 {[%emt
00:01:12]} 24. Qxf3 {[%clk 00:04:30]} {[%emt 00:01:49]} Bg4 25. Qxf7 {[%emt
00:01:54]} Qxf7 {[%clk 00:07:27]} {[%emt 00:00:19]} 26. Bxf7 {[%clk 00:04:33]}
{[%emt 00:00:02]} Bf3+ {[%clk 00:07:24]} {[%emt 00:00:08]} 27. Rg2 {[%clk
00:04:29]} {[%emt 00:00:09]} Rxg2 {[%clk 00:07:17]} {[%emt 00:00:12]} 28. Rg1
{[%clk 00:04:21]} {[%emt 00:00:12]} Rg3+ {[%clk 00:06:00]} {[%emt 00:01:23]} 29.
Rg2 {[%clk 00:04:22]} {[%emt 00:00:03]} Rxg2 {[%clk 00:05:59]} {[%emt
00:00:07]} 30. h3 {[%clk 00:04:23]} {[%emt 00:00:03]} Rg7+ {[%clk 00:05:36]}
{[%emt 00:00:29]} 31. Kh2 {[%clk 00:04:24]} {[%emt 00:00:03]} Rxf7 {[%clk
00:05:37]} {[%emt 00:00:04]} 0-1



[ePGN "0.1;DGT LiveChess/2.2.6"]

[Event "MČR juniorů a juniorek v rapid šachu 2024"]
[Site "Hotel Fit Fun, Harrachov, Czech Republic"]
[Date "2024.09.22"]
[Round "9.36"]
[White "Horvath Michal"]
[Black "Taborska Aneta"]
[Result "0-1"]
[TimeControl "20+5"]
[BlackFideId "23733039"]
[WhiteElo "1000"]
[BlackElo "1582"]

1. e4 {[%clk 00:20:06]} {[%emt 00:00:04]} d5 {[%clk 00:20:01]} {[%emt
00:00:10]} 2. exd5 {[%clk 00:20:10]} {[%emt 00:00:01]} Qxd5 {[%clk 00:20:04]}
{[%emt 00:00:01]} 3. Nc3 {[%clk 00:20:14]} Qa5 {[%clk 00:20:08]} {[%emt
00:00:03]} 4. Nf3 {[%clk 00:20:09]} {[%emt 00:00:10]} Bg4 {[%clk 00:20:07]}
{[%emt 00:00:05]} 5. d3 {[%clk 00:20:11]} {[%emt 00:00:04]} Nc6 {[%clk
00:20:10]} 6. Bd2 {[%clk 00:20:15]} {[%emt 00:00:02]} O-O-O {[%clk 00:20:13]}
{[%emt 00:00:02]} 7. h3 {[%clk 00:19:57]} {[%emt 00:00:23]} Bh5 {[%clk
00:20:15]} {[%emt 00:00:03]} 8. Ne4 {[%clk 00:19:22]} {[%emt 00:00:40]} Qb6
{[%clk 00:20:08]} {[%emt 00:00:12]} 9. g3 {[%clk 00:18:41]} {[%emt 00:00:45]}
e5 {[%clk 00:19:28]} {[%emt 00:00:45]} 10. Bg2 {[%clk 00:18:40]} {[%emt
00:00:07]} Be7 {[%clk 00:18:52]} {[%emt 00:00:39]} 11. O-O {[%clk 00:18:09]}
{[%emt 00:00:38]} f5 {[%clk 00:18:39]} {[%emt 00:00:18]} 12. Bg5 {[%clk
00:17:14]} {[%emt 00:01:00]} fxe4 {[%clk 00:18:31]} {[%emt 00:00:13]} 13. Bxe7
{[%clk 00:16:03]} {[%emt 00:01:16]} Ncxe7 {[%clk 00:18:24]} {[%emt 00:00:11]}
14. g4 {[%clk 00:15:47]} {[%emt 00:00:21]} Bxg4 {[%clk 00:18:12]} {[%emt
00:00:17]} 15. hxg4 {[%clk 00:15:49]} {[%emt 00:00:03]} exf3 {[%clk 00:18:15]}
{[%emt 00:00:02]} 16. Qxf3 {[%clk 00:15:44]} {[%emt 00:00:10]} Nf6 {[%clk
00:18:06]} {[%emt 00:00:15]} 17. c4 {[%clk 00:15:21]} {[%emt 00:00:28]} Nd7
{[%clk 00:17:24]} {[%emt 00:00:44]} 18. b4 {[%clk 00:14:37]} {[%emt 00:00:52]}
Rhf8 {[%clk 00:17:16]} {[%emt 00:00:11]} 19. Qe4 {[%clk 00:14:21]} {[%emt
00:00:22]} Rf4 {[%clk 00:16:50]} {[%emt 00:00:29]} 20. Qxh7 {[%clk 00:13:38]}
{[%emt 00:00:50]} Rxg4 {[%clk 00:16:41]} {[%emt 00:00:13]} 21. Qh3 {[%clk
00:12:24]} {[%emt 00:01:20]} Rg6 {[%clk 00:16:21]} {[%emt 00:00:21]} 22. Rfe1
{[%clk 00:12:16]} {[%emt 00:00:18]} Kb8 {[%clk 00:15:35]} {[%emt 00:00:50]} 23.
c5 {[%clk 00:11:53]} {[%emt 00:00:29]} Qc6 {[%clk 00:15:21]} {[%emt 00:00:17]}
24. Kf1 {[%clk 00:11:37]} {[%emt 00:00:23]} Qf6 {[%clk 00:14:57]} {[%emt
00:00:26]} 25. Qe3 {[%clk 00:10:00]} {[%emt 00:01:43]} Nf5 {[%clk 00:14:52]}
{[%emt 00:00:12]} 26. Qf3 {[%clk 00:09:07]} {[%emt 00:00:57]} c6 {[%clk
00:13:59]} {[%emt 00:00:59]} 27. b5 {[%clk 00:08:43]} {[%emt 00:00:29]} Nxc5
{[%clk 00:13:30]} {[%emt 00:00:34]} 28. bxc6 {[%clk 00:08:41]} {[%emt
00:00:06]} Rxd3 {[%clk 00:11:50]} {[%emt 00:01:46]} 29. c7+ {[%clk 00:07:51]}
{[%emt 00:00:54]} Kc8 {[%clk 00:11:30]} {[%emt 00:00:21]} 30. Qxb7+ {[%clk
00:06:47]} {[%emt 00:01:14]} Nxb7 {[%clk 00:11:32]} {[%emt 00:00:03]} 31. Bxb7+
{[%clk 00:06:43]} {[%emt 00:00:10]} Kxb7 {[%clk 00:11:19]} {[%emt 00:00:15]} 32.
Rab1+ {[%clk 00:05:40]} {[%emt 00:01:09]} Kxc7 {[%clk 00:11:06]} {[%emt
00:00:18]} 33. Rec1+ {[%clk 00:05:43]} {[%emt 00:00:02]} Kd6 {[%clk 00:11:07]}
{[%emt 00:00:04]} 34. Rc6+ {[%clk 00:05:11]} {[%emt 00:00:37]} Kxc6 {[%clk
00:11:03]} {[%emt 00:00:09]} 35. Rb6+ {[%clk 00:04:57]} {[%emt 00:00:20]} axb6
{[%clk 00:11:05]} {[%emt 00:00:03]} 36. a4 {[%clk 00:05:01]} Ne3+ {[%clk
00:10:59]} {[%emt 00:00:12]} 37. Ke2 {[%clk 00:05:04]} {[%emt 00:00:02]} Rd4
{[%clk 00:10:37]} {[%emt 00:00:27]} 38. a5 {[%clk 00:04:53]} {[%emt 00:00:16]}
bxa5 {[%clk 00:10:32]} {[%emt 00:00:10]} 39. Ke1 {[%clk 00:04:33]} {[%emt
00:00:25]} Rg1+ {[%clk 00:10:16]} {[%emt 00:00:20]} 40. Ke2 {[%clk 00:04:35]}
{[%emt 00:00:03]} Rg2 {[%clk 00:09:46]} {[%emt 00:00:35]} 41. Kxe3 {[%clk
00:04:31]} {[%emt 00:00:10]} Qxf2# {[%clk 00:09:48]} {[%emt 00:00:03]} 0-1



[ePGN "0.1;DGT LiveChess/2.2.6"]

[Event "MČR juniorů a juniorek v rapid šachu 2024"]
[Site "Hotel Fit Fun, Harrachov, Czech Republic"]
[Date "2024.09.22"]
[Round "9.4"]
[White "Lihotsky Lukas"]
[Black "Markina Sofiia"]
[Result "1-0"]
[TimeControl "20+5"]
[WhiteFideId "23727004"]
[BlackFideId "23744014"]
[WhiteElo "1975"]
[BlackElo "1885"]

1. d4 {[%clk 00:20:08]} {[%emt 00:00:02]} d5 {[%clk 00:20:09]} 2. c4 {[%clk
00:20:12]} c6 {[%clk 00:20:14]} 3. Nc3 {[%clk 00:20:17]} Nf6 {[%clk 00:20:16]}
{[%emt 00:00:03]} 4. Nf3 {[%clk 00:20:21]} dxc4 {[%clk 00:20:20]} {[%emt
00:00:01]} 5. a4 {[%clk 00:20:25]} {[%emt 00:00:01]} Bf5 {[%clk 00:20:21]}
{[%emt 00:00:03]} 6. Ne5 {[%clk 00:20:29]} Nbd7 {[%clk 00:20:25]} {[%emt
00:00:02]} 7. Nxc4 {[%clk 00:20:31]} {[%emt 00:00:02]} Nb6 {[%clk 00:20:28]}
{[%emt 00:00:03]} 8. Ne3 {[%clk 00:20:32]} {[%emt 00:00:04]} Be6 {[%clk
00:19:50]} {[%emt 00:00:43]} 9. a5 {[%clk 00:19:59]} {[%emt 00:00:38]} Nc4
{[%clk 00:19:10]} {[%emt 00:00:45]} 10. Nxc4 {[%clk 00:19:35]} {[%emt
00:00:29]} Bxc4 {[%clk 00:19:13]} {[%emt 00:00:02]} 11. g3 {[%clk 00:19:25]}
{[%emt 00:00:16]} g6 {[%clk 00:18:39]} {[%emt 00:00:39]} 12. Bg2 {[%clk
00:19:24]} {[%emt 00:00:06]} Bg7 {[%clk 00:18:43]} {[%emt 00:00:01]} 13. Qa4
{[%clk 00:15:55]} {[%emt 00:03:33]} Bd5 {[%clk 00:13:00]} {[%emt 00:05:49]} 14.
Nxd5 {[%clk 00:14:33]} {[%emt 00:01:27]} Nxd5 {[%clk 00:13:03]} {[%emt
00:00:01]} 15. a6 {[%clk 00:13:28]} {[%emt 00:01:09]} b5 {[%clk 00:11:23]}
{[%emt 00:01:45]} 16. Qb3 {[%clk 00:13:01]} {[%emt 00:00:32]} O-O {[%clk
00:10:22]} {[%emt 00:01:06]} 17. O-O {[%clk 00:12:55]} {[%emt 00:00:10]} e6
{[%clk 00:09:57]} {[%emt 00:00:31]} 18. Rd1 {[%clk 00:12:20]} {[%emt 00:00:40]}
Qb6 {[%clk 00:09:52]} {[%emt 00:00:11]} 19. e4 {[%clk 00:11:35]} {[%emt
00:00:50]} Nc7 {[%clk 00:09:14]} {[%emt 00:00:40]} 20. Be3 {[%clk 00:11:27]}
{[%emt 00:00:16]} Rfd8 {[%clk 00:07:36]} {[%emt 00:01:43]} 21. d5 {[%clk
00:07:42]} {[%emt 00:03:50]} c5 {[%clk 00:07:39]} {[%emt 00:00:02]} 22. d6
{[%clk 00:07:08]} {[%emt 00:00:40]} Rxd6 {[%clk 00:04:14]} {[%emt 00:03:30]} 23.
Rxd6 {[%clk 00:07:08]} {[%emt 00:00:05]} Qxd6 {[%clk 00:04:18]} {[%emt
00:00:02]} 24. e5 {[%clk 00:07:09]} {[%emt 00:00:04]} Bxe5 {[%clk 00:04:14]}
{[%emt 00:00:09]} 25. Bxa8 {[%clk 00:07:10]} {[%emt 00:00:03]} Nxa8 {[%clk
00:04:18]} 26. Qxb5 {[%clk 00:07:04]} {[%emt 00:00:11]} Bd4 {[%clk 00:04:04]}
{[%emt 00:00:19]} 27. Bxd4 {[%clk 00:05:56]} {[%emt 00:01:12]} cxd4 {[%clk
00:04:07]} {[%emt 00:00:03]} 28. Qe8+ {[%clk 00:05:53]} {[%emt 00:00:08]} Kg7
{[%clk 00:04:09]} {[%emt 00:00:04]} 29. Qxa8 {[%clk 00:05:47]} {[%emt
00:00:12]} e5 {[%clk 00:03:45]} {[%emt 00:00:28]} 30. Qxa7 {[%clk 00:05:32]}
{[%emt 00:00:20]} d3 {[%clk 00:03:44]} {[%emt 00:00:07]} 31. Qe3 {[%clk
00:05:29]} {[%emt 00:00:08]} d2 {[%clk 00:03:39]} {[%emt 00:00:10]} 32. Qe2
{[%clk 00:05:23]} {[%emt 00:00:11]} 1-0



[ePGN "0.1;DGT LiveChess/2.2.6"]

[Event "MČR juniorů a juniorek v rapid šachu 2024"]
[Site "Hotel Fit Fun, Harrachov, Czech Republic"]
[Date "2024.09.22"]
[Round "9.5"]
[White "Sichrovsky Tomas"]
[Black "Rousek Jan"]
[Result "0-1"]
[TimeControl "20+5"]
[WhiteFideId "23704730"]
[BlackFideId "386669"]
[WhiteElo "1928"]
[BlackElo "1958"]

1. d4 {[%clk 00:20:08]} {[%emt 00:00:01]} Nf6 {[%clk 00:20:09]} {[%emt
00:00:02]} 2. c4 {[%clk 00:20:12]} g6 {[%clk 00:20:12]} {[%emt 00:00:02]} 3.
Nc3 {[%clk 00:20:16]} {[%emt 00:00:01]} d5 {[%clk 00:20:15]} {[%emt 00:00:01]}
4. cxd5 {[%clk 00:20:20]} {[%emt 00:00:01]} Nxd5 {[%clk 00:20:18]} {[%emt
00:00:01]} 5. e4 {[%clk 00:20:24]} {[%emt 00:00:01]} Nxc3 {[%clk 00:20:21]}
{[%emt 00:00:02]} 6. bxc3 {[%clk 00:20:28]} {[%emt 00:00:02]} Bg7 {[%clk
00:20:21]} {[%emt 00:00:04]} 7. Bc4 {[%clk 00:20:32]} {[%emt 00:00:02]} c5
{[%clk 00:20:23]} {[%emt 00:00:03]} 8. Ne2 {[%clk 00:20:35]} {[%emt 00:00:02]}
Nc6 {[%clk 00:19:54]} {[%emt 00:00:34]} 9. Be3 {[%clk 00:20:39]} {[%emt
00:00:01]} O-O {[%clk 00:19:52]} {[%emt 00:00:07]} 10. O-O {[%clk 00:20:41]}
{[%emt 00:00:03]} cxd4 {[%clk 00:19:54]} {[%emt 00:00:03]} 11. cxd4 {[%clk
00:20:45]} {[%emt 00:00:02]} b6 {[%clk 00:19:57]} {[%emt 00:00:02]} 12. Rc1
{[%clk 00:20:41]} {[%emt 00:00:08]} Bb7 {[%clk 00:19:56]} {[%emt 00:00:06]} 13.
Bd5 {[%clk 00:20:17]} {[%emt 00:00:29]} Na5 {[%clk 00:18:24]} {[%emt 00:01:37]}
14. Bxb7 {[%clk 00:20:12]} {[%emt 00:00:10]} Nxb7 {[%clk 00:18:28]} {[%emt
00:00:01]} 15. Qd2 {[%clk 00:20:16]} {[%emt 00:00:02]} Qd7 {[%clk 00:17:14]}
{[%emt 00:01:19]} 16. d5 {[%clk 00:17:33]} {[%emt 00:02:47]} Rac8 {[%clk
00:16:34]} {[%emt 00:00:44]} 17. Nd4 {[%clk 00:17:08]} {[%emt 00:00:31]} Nd6
{[%clk 00:13:30]} {[%emt 00:03:09]} 18. Qd3 {[%clk 00:16:02]} {[%emt 00:01:12]}
e6 {[%clk 00:08:59]} {[%emt 00:04:35]} 19. dxe6 {[%clk 00:14:58]} {[%emt
00:01:09]} fxe6 {[%clk 00:09:01]} {[%emt 00:00:03]} 20. Rcd1 {[%clk 00:13:32]}
{[%emt 00:01:31]} Nc4 {[%clk 00:07:45]} {[%emt 00:01:21]} 21. Qb3 {[%clk
00:11:44]} {[%emt 00:01:53]} Nxe3 {[%clk 00:06:01]} {[%emt 00:01:48]} 22. Qxe3
{[%clk 00:09:31]} {[%emt 00:02:19]} Rfd8 {[%clk 00:04:59]} {[%emt 00:01:07]} 23.
e5 {[%clk 00:08:31]} {[%emt 00:01:05]} Rc4 {[%clk 00:04:12]} {[%emt 00:00:52]}
24. Nf5 {[%clk 00:07:01]} {[%emt 00:01:35]} Qxd1 {[%clk 00:03:31]} {[%emt
00:00:45]} 25. Ne7+ {[%clk 00:07:05]} {[%emt 00:00:01]} Kf7 {[%clk 00:02:31]}
{[%emt 00:01:06]} 26. Qf3+ {[%clk 00:07:09]} {[%emt 00:00:01]} Qxf3 {[%emt
00:00:03]} 0-1



[ePGN "0.1;DGT LiveChess/2.2.6"]